[Event "Titled Tuesday Blitz November 22 Early 2022"]
[White "Corrales Jimenez, Fidel"]
[Black "Fernandez Garcia, Gumersindo"]
[WhiteFideId "3506690"]
[BlackFideId "24516740"]
[WhiteElo "2541"]
[BlackElo "2140"]
[Result "1-0"]
[Round "01"]
[TimeControl "180+1"]
[Date "2022.11.22"]
[WhiteClock "0:02:02"]
[BlackClock "0:01:22"]

1. e4 {[%clk 0:02:59]}  d6 {[%clk 0:02:52]} 2. d4 {[%clk 0:02:58]}  Nf6 {[%clk 0:02:52]} 3. Nc3 {[%clk 0:02:58]}  e5 {[%clk 0:02:52]} 4. dxe5 {[%clk 0:02:58]}  dxe5 {[%clk 0:02:53]} 5. Qxd8+ {[%clk 0:02:58]}  Kxd8 {[%clk 0:02:54]} 6. b3 {[%clk 0:02:54]}  c6 {[%clk 0:02:53]} 7. Bb2 {[%clk 0:02:54]}  Kc7 {[%clk 0:02:53]} 8. O-O-O {[%clk 0:02:55]}  Nbd7 {[%clk 0:02:51]} 9. Bc4 {[%clk 0:02:54]}  Bc5 {[%clk 0:02:50]} 10. Nh3 {[%clk 0:02:50]}  Rf8 {[%clk 0:02:48]} 11. Na4 {[%clk 0:02:42]}  Bd6 {[%clk 0:02:42]} 12. Ng5 {[%clk 0:02:39]}  b5 {[%clk 0:02:39]} 13. Bxf7 {[%clk 0:02:39]}  Nb6 {[%clk 0:02:28]} 14. Rxd6 {[%clk 0:02:31]}  bxa4 {[%clk 0:02:18]} 15. Bxe5 {[%clk 0:02:30]}  Kb7 {[%clk 0:02:12]} 16. Be6 {[%clk 0:02:17]}  Re8 {[%clk 0:01:57]} 17. Bxf6 {[%clk 0:02:14]}  gxf6 {[%clk 0:01:56]} 18. Bxc8+ {[%clk 0:02:15]}  Raxc8 {[%clk 0:01:54]} 19. Nxh7 {[%clk 0:02:10]}  Rxe4 {[%clk 0:01:49]} 20. Nxf6 {[%clk 0:02:09]}  Rf4 {[%clk 0:01:43]} 21. f3 {[%clk 0:02:08]}  c5 {[%clk 0:01:37]} 22. Nd5 {[%clk 0:02:03]}  Rd4 {[%clk 0:01:34]} 23. Nxb6 {[%clk 0:02:03]}  axb6 {[%clk 0:01:23]} 24. Rxd4 {[%clk 0:02:02]}  cxd4 {[%clk 0:01:24]} 25. Kd2 {[%clk 0:02:02]}  axb3 {[%clk 0:01:23]} 26. axb3 {[%clk 0:02:03]}  Rg8 {[%clk 0:01:23]} 27. g4 {[%clk 0:02:03]}  Kc6 {[%clk 0:01:23]} 28. h4 {[%clk 0:02:03]}  Kd5 {[%clk 0:01:24]} 29. h5 {[%clk 0:02:03]}  Ke5 {[%clk 0:01:24]} 30. h6 {[%clk 0:02:03]}  Kf4 {[%clk 0:01:23]} 31. h7 {[%clk 0:02:04]}  Rh8 {[%clk 0:01:23]} 32. Kd3 {[%clk 0:02:01]}  Kxf3 {[%clk 0:01:22]} 33. g5 {[%clk 0:02:02]} 1-0


[Site "https://www.chess.com"]

[Event "Titled Tuesday Blitz November 22 Early 2022"]
[White "Csonka, Balazs"]
[Black "Muminova, Nafisa"]
[WhiteFideId "742910"]
[BlackFideId "14201526"]
[WhiteElo "2404"]
[BlackElo "2258"]
[Result "1-0"]
[Round "01"]
[TimeControl "180+1"]
[Date "2022.11.23"]
[WhiteClock "0:00:08"]
[BlackClock "0:00:17"]

1. e4 {[%clk 0:02:59]}  e6 {[%clk 0:02:58]} 2. d4 {[%clk 0:02:58]}  d5 {[%clk 0:02:58]} 3. e5 {[%clk 0:02:58]}  c5 {[%clk 0:02:57]} 4. c3 {[%clk 0:02:59]}  Nc6 {[%clk 0:02:57]} 5. Nf3 {[%clk 0:02:59]}  Qb6 {[%clk 0:02:56]} 6. Bd3 {[%clk 0:02:59]}  Bd7 {[%clk 0:02:53]} 7. dxc5 {[%clk 0:02:52]}  Bxc5 {[%clk 0:02:52]} 8. O-O {[%clk 0:02:53]}  a5 {[%clk 0:02:49]} 9. a4 {[%clk 0:02:39]}  Nge7 {[%clk 0:02:49]} 10. Na3 {[%clk 0:02:25]}  Ng6 {[%clk 0:02:48]} 11. Qe2 {[%clk 0:02:23]}  O-O {[%clk 0:02:34]} 12. Nb5 {[%clk 0:02:16]}  Rae8 {[%clk 0:02:26]} 13. Ng5 {[%clk 0:01:55]}  Ncxe5 {[%clk 0:02:01]} 14. Bc2 {[%clk 0:01:38]}  h6 {[%clk 0:01:48]} 15. Nh3 {[%clk 0:01:07]}  Nc4 {[%clk 0:01:30]} 16. Qh5 {[%clk 0:00:49]}  e5 {[%clk 0:01:20]} 17. Kh1 {[%clk 0:00:41]}  e4 {[%clk 0:01:08]} 18. Qxd5 {[%clk 0:00:33]}  Bxh3 {[%clk 0:01:05]} 19. Qxc4 {[%clk 0:00:30]}  Bf5 {[%clk 0:01:02]} 20. b4 {[%clk 0:00:27]}  axb4 {[%clk 0:01:01]} 21. cxb4 {[%clk 0:00:28]}  Bxf2 {[%clk 0:00:52]} 22. Qe2 {[%clk 0:00:18]}  e3 {[%clk 0:00:43]} 23. Bxf5 {[%clk 0:00:17]}  Qf6 {[%clk 0:00:43]} 24. Bxg6 {[%clk 0:00:07]}  Qxa1 {[%clk 0:00:30]} 25. Bxe3 {[%clk 0:00:08]}  Rxe3 {[%clk 0:00:19]} 26. Qxf2 {[%clk 0:00:06]}  Qe5 {[%clk 0:00:19]} 27. Bb1 {[%clk 0:00:05]}  f5 {[%clk 0:00:18]} 28. Nd6 {[%clk 0:00:04]}  f4 {[%clk 0:00:17]} 29. Nc4 {[%clk 0:00:04]}  Qe7 {[%clk 0:00:09]} 30. Nxe3 {[%clk 0:00:05]}  fxe3 {[%clk 0:00:09]} 31. Qxf8+ {[%clk 0:00:04]}  Qxf8 {[%clk 0:00:09]} 32. Ba2+ {[%clk 0:00:04]}  Qf7 {[%clk 0:00:06]} 33. Rxf7 {[%clk 0:00:04]}  Kh7 {[%clk 0:00:07]} 34. Re7 {[%clk 0:00:05]}  e2 {[%clk 0:00:08]} 35. Rxe2 {[%clk 0:00:06]}  Kg6 {[%clk 0:00:08]} 36. Kg1 {[%clk 0:00:06]}  Kg5 {[%clk 0:00:09]} 37. Kf2 {[%clk 0:00:07]}  Kf4 {[%clk 0:00:09]} 38. Bd5 {[%clk 0:00:08]}  g5 {[%clk 0:00:10]} 39. Bxb7 {[%clk 0:00:08]}  Kf5 {[%clk 0:00:11]} 40. g3 {[%clk 0:00:08]}  h5 {[%clk 0:00:12]} 41. a5 {[%clk 0:00:09]}  h4 {[%clk 0:00:12]} 42. a6 {[%clk 0:00:09]}  g4 {[%clk 0:00:13]} 43. gxh4 {[%clk 0:00:10]}  g3+ {[%clk 0:00:13]} 44. Kxg3 {[%clk 0:00:09]}  Kg6 {[%clk 0:00:14]} 45. a7 {[%clk 0:00:10]}  Kh5 {[%clk 0:00:15]} 46. a8=Q {[%clk 0:00:09]}  Kh6 {[%clk 0:00:16]} 47. Qh8+ {[%clk 0:00:09]}  Kg6 {[%clk 0:00:17]} 48. h5+ {[%clk 0:00:08]}  Kf5 {[%clk 0:00:17]} 49. Qe5# {[%clk 0:00:08]} 1-0


[Site "https://www.chess.com"]

[Event "Titled Tuesday Blitz November 22 Early 2022"]
[White "D`Arruda, Ricardo D."]
[Black "Jumabayev, Rinat"]
[WhiteFideId "100692"]
[BlackFideId "13702661"]
[WhiteElo "2484"]
[BlackElo "2561"]
[Result "1/2-1/2"]
[Round "01"]
[TimeControl "180+1"]
[Date "2022.11.22"]
[WhiteClock "0:00:20"]
[BlackClock "0:00:05"]

1. d4 {[%clk 0:02:58]}  Nf6 {[%clk 0:02:58]} 2. Nf3 {[%clk 0:02:55]}  e6 {[%clk 0:02:59]} 3. c4 {[%clk 0:02:53]}  Bb4+ {[%clk 0:02:59]} 4. Nbd2 {[%clk 0:02:52]}  d5 {[%clk 0:02:55]} 5. a3 {[%clk 0:02:51]}  Be7 {[%clk 0:02:54]} 6. Qc2 {[%clk 0:02:49]}  a5 {[%clk 0:02:29]} 7. e4 {[%clk 0:02:48]}  dxe4 {[%clk 0:02:28]} 8. Nxe4 {[%clk 0:02:49]}  Nbd7 {[%clk 0:02:24]} 9. Bd3 {[%clk 0:02:47]}  b6 {[%clk 0:02:24]} 10. O-O {[%clk 0:02:46]}  Bb7 {[%clk 0:02:24]} 11. Bf4 {[%clk 0:02:39]}  O-O {[%clk 0:02:23]} 12. Rad1 {[%clk 0:02:38]}  a4 {[%clk 0:02:23]} 13. Rfe1 {[%clk 0:02:36]}  Re8 {[%clk 0:02:16]} 14. Ne5 {[%clk 0:02:36]}  h6 {[%clk 0:02:14]} 15. h3 {[%clk 0:02:28]}  Qc8 {[%clk 0:02:14]} 16. Bg3 {[%clk 0:02:10]}  Ra5 {[%clk 0:01:51]} 17. f4 {[%clk 0:02:04]}  c5 {[%clk 0:01:50]} 18. Nxd7 {[%clk 0:01:56]}  Nxd7 {[%clk 0:01:49]} 19. dxc5 {[%clk 0:01:10]}  Bxe4 {[%clk 0:01:48]} 20. Bxe4 {[%clk 0:01:09]}  Rxc5 {[%clk 0:01:48]} 21. Qxa4 {[%clk 0:01:04]}  Nf6 {[%clk 0:01:47]} 22. Bd3 {[%clk 0:01:01]}  Nh5 {[%clk 0:01:46]} 23. Bh2 {[%clk 0:01:01]}  Bh4 {[%clk 0:01:46]} 24. Re3 {[%clk 0:00:59]}  Rd8 {[%clk 0:01:31]} 25. Be2 {[%clk 0:00:58]}  Bf6 {[%clk 0:01:15]} 26. b4 {[%clk 0:00:52]}  Rf5 {[%clk 0:01:00]} 27. Bg4 {[%clk 0:00:49]}  g6 {[%clk 0:00:18]} 28. Bxf5 {[%clk 0:00:44]}  gxf5 {[%clk 0:00:19]} 29. Red3 {[%clk 0:00:42]}  Rxd3 {[%clk 0:00:18]} 30. Rxd3 {[%clk 0:00:43]}  Qxc4 {[%clk 0:00:19]} 31. Qd1 {[%clk 0:00:41]}  Nxf4 {[%clk 0:00:18]} 32. Bxf4 {[%clk 0:00:41]}  Qxf4 {[%clk 0:00:19]} 33. Qd2 {[%clk 0:00:36]}  Qe4 {[%clk 0:00:16]} 34. Kh1 {[%clk 0:00:32]}  Kg7 {[%clk 0:00:14]} 35. Rg3+ {[%clk 0:00:30]}  Kh7 {[%clk 0:00:14]} 36. Rf3 {[%clk 0:00:22]}  Be5 {[%clk 0:00:10]} 37. Kg1 {[%clk 0:00:20]}  Bd4+ {[%clk 0:00:07]} 38. Kf1 {[%clk 0:00:20]}  Qb1+ {[%clk 0:00:04]} 39. Ke2 {[%clk 0:00:20]}  Qe4+ {[%clk 0:00:04]} 40. Kf1 {[%clk 0:00:20]}  Qb1+ {[%clk 0:00:04]} 41. Ke2 {[%clk 0:00:20]}  Qe4+ {[%clk 0:00:05]} 42. Kf1 {[%clk 0:00:20]} 1/2-1/2


[Site "https://www.chess.com"]

[Event "Titled Tuesday Blitz November 22 Early 2022"]
[White "Danielyan, Vahe"]
[Black "Maung, Maung Kyaw Zaw Hein"]
[WhiteFideId "13304828"]
[BlackFideId "13001698"]
[WhiteElo "2423"]
[BlackElo "2019"]
[Result "0-1"]
[Round "01"]
[TimeControl "180+1"]
[Date "2022.11.23"]
[WhiteClock "0:00:02"]
[BlackClock "0:00:19"]

1. e4 {[%clk 0:02:59]}  c6 {[%clk 0:03:00]} 2. Nc3 {[%clk 0:02:59]}  d5 {[%clk 0:03:01]} 3. Nf3 {[%clk 0:02:59]}  dxe4 {[%clk 0:03:01]} 4. Nxe4 {[%clk 0:02:59]}  Bg4 {[%clk 0:03:01]} 5. h3 {[%clk 0:02:59]}  Bxf3 {[%clk 0:03:01]} 6. Qxf3 {[%clk 0:03:00]}  Nd7 {[%clk 0:03:01]} 7. d4 {[%clk 0:02:57]}  Ngf6 {[%clk 0:03:00]} 8. Nxf6+ {[%clk 0:02:54]}  Nxf6 {[%clk 0:03:00]} 9. c3 {[%clk 0:02:54]}  e6 {[%clk 0:03:00]} 10. Bd3 {[%clk 0:02:53]}  Be7 {[%clk 0:02:59]} 11. O-O {[%clk 0:02:53]}  O-O {[%clk 0:02:59]} 12. Bf4 {[%clk 0:02:52]}  Qb6 {[%clk 0:02:52]} 13. Qe2 {[%clk 0:02:52]}  c5 {[%clk 0:02:49]} 14. dxc5 {[%clk 0:02:50]}  Bxc5 {[%clk 0:02:48]} 15. Rad1 {[%clk 0:02:50]}  Rad8 {[%clk 0:02:46]} 16. Bg5 {[%clk 0:02:50]}  Be7 {[%clk 0:02:45]} 17. Rfe1 {[%clk 0:02:48]}  Rd6 {[%clk 0:02:44]} 18. Be3 {[%clk 0:02:46]}  Qa5 {[%clk 0:02:38]} 19. b4 {[%clk 0:02:44]}  Qa3 {[%clk 0:02:33]} 20. Bc5 {[%clk 0:02:44]}  Rd7 {[%clk 0:02:29]} 21. Bd4 {[%clk 0:02:41]}  Rfd8 {[%clk 0:02:17]} 22. Bb5 {[%clk 0:02:41]}  Rd5 {[%clk 0:02:12]} 23. Bc4 {[%clk 0:02:39]}  R5d7 {[%clk 0:02:11]} 24. Bb3 {[%clk 0:02:31]}  a5 {[%clk 0:01:58]} 25. bxa5 {[%clk 0:02:21]}  Qxa5 {[%clk 0:01:56]} 26. Rd3 {[%clk 0:01:34]}  Qh5 {[%clk 0:01:35]} 27. Rg3 {[%clk 0:01:24]}  Qxe2 {[%clk 0:01:34]} 28. Rxe2 {[%clk 0:01:25]}  g6 {[%clk 0:01:30]} 29. Rf3 {[%clk 0:01:22]}  Nd5 {[%clk 0:01:29]} 30. g4 {[%clk 0:01:22]}  b5 {[%clk 0:01:25]} 31. Kg2 {[%clk 0:01:17]}  Rc8 {[%clk 0:01:25]} 32. Re5 {[%clk 0:01:13]}  Bc5 {[%clk 0:01:23]} 33. Bxd5 {[%clk 0:01:03]}  Rxd5 {[%clk 0:01:18]} 34. Rxd5 {[%clk 0:00:59]}  exd5 {[%clk 0:01:19]} 35. Bf6 {[%clk 0:00:58]}  h6 {[%clk 0:01:14]} 36. Rd3 {[%clk 0:00:56]}  Rc6 {[%clk 0:01:14]} 37. Be5 {[%clk 0:00:56]}  Bd6 {[%clk 0:01:09]} 38. Rxd5 {[%clk 0:00:55]}  Bxe5 {[%clk 0:01:08]} 39. Rxe5 {[%clk 0:00:56]}  Rxc3 {[%clk 0:01:07]} 40. Rxb5 {[%clk 0:00:56]}  Ra3 {[%clk 0:01:07]} 41. Rb2 {[%clk 0:00:56]}  g5 {[%clk 0:01:08]} 42. Re2 {[%clk 0:00:55]}  Kg7 {[%clk 0:01:07]} 43. f3 {[%clk 0:00:53]}  Kg6 {[%clk 0:01:06]} 44. Kg3 {[%clk 0:00:53]}  h5 {[%clk 0:01:04]} 45. gxh5+ {[%clk 0:00:49]}  Kxh5 {[%clk 0:01:04]} 46. Rc2 {[%clk 0:00:33]}  f5 {[%clk 0:01:03]} 47. Rb2 {[%clk 0:00:29]}  f4+ {[%clk 0:00:58]} 48. Kh2 {[%clk 0:00:29]}  Rxf3 {[%clk 0:00:56]} 49. Rb1 {[%clk 0:00:24]}  Kh4 {[%clk 0:00:52]} 50. Ra1 {[%clk 0:00:22]}  Rxh3+ {[%clk 0:00:52]} 51. Kg1 {[%clk 0:00:22]}  Ra3 {[%clk 0:00:41]} 52. Kf2 {[%clk 0:00:22]}  g4 {[%clk 0:00:40]} 53. Kg2 {[%clk 0:00:19]}  f3+ {[%clk 0:00:38]} 54. Kh1 {[%clk 0:00:18]}  g3 {[%clk 0:00:39]} 55. Kg1 {[%clk 0:00:19]}  Kh3 {[%clk 0:00:38]} 56. Kf1 {[%clk 0:00:19]}  Kh2 {[%clk 0:00:38]} 57. Ke1 {[%clk 0:00:17]}  g2 {[%clk 0:00:37]} 58. Kf2 {[%clk 0:00:17]}  Rxa2+ {[%clk 0:00:35]} 59. Rxa2 {[%clk 0:00:17]}  g1=Q+ {[%clk 0:00:35]} 60. Kxf3+ {[%clk 0:00:17]}  Kh3 {[%clk 0:00:35]} 61. Re2 {[%clk 0:00:17]}  Qf1+ {[%clk 0:00:35]} 62. Ke3 {[%clk 0:00:18]}  Kg3 {[%clk 0:00:35]} 63. Kd2 {[%clk 0:00:18]}  Qf4+ {[%clk 0:00:34]} 64. Kd3 {[%clk 0:00:17]}  Kf3 {[%clk 0:00:32]} 65. Rd2 {[%clk 0:00:14]}  Qd6+ {[%clk 0:00:30]} 66. Kc2 {[%clk 0:00:14]}  Qb4 {[%clk 0:00:28]} 67. Rd3+ {[%clk 0:00:13]}  Ke4 {[%clk 0:00:28]} 68. Rb3 {[%clk 0:00:13]}  Qc4+ {[%clk 0:00:27]} 69. Rc3 {[%clk 0:00:13]}  Qe2+ {[%clk 0:00:27]} 70. Kb3 {[%clk 0:00:13]}  Kd4 {[%clk 0:00:28]} 71. Rc2 {[%clk 0:00:10]}  Qb5+ {[%clk 0:00:27]} 72. Ka2 {[%clk 0:00:10]}  Qa4+ {[%clk 0:00:24]} 73. Kb1 {[%clk 0:00:10]}  Qb3+ {[%clk 0:00:23]} 74. Rb2 {[%clk 0:00:10]}  Qd1+ {[%clk 0:00:23]} 75. Ka2 {[%clk 0:00:11]}  Kc3 {[%clk 0:00:23]} 76. Rb8 {[%clk 0:00:08]}  Qe2+ {[%clk 0:00:20]} 77. Ka1 {[%clk 0:00:08]}  Qe1+ {[%clk 0:00:20]} 78. Ka2 {[%clk 0:00:07]}  Qf2+ {[%clk 0:00:20]} 79. Kb1 {[%clk 0:00:03]}  Qg1+ {[%clk 0:00:19]} 80. Ka2 {[%clk 0:00:03]}  Qh2+ {[%clk 0:00:19]} 81. Rb2 {[%clk 0:00:02]}  Qxb2# {[%clk 0:00:19]} 0-1


[Site "https://www.chess.com"]

[Event "Titled Tuesday Blitz November 22 Early 2022"]
[White "Decuigniere, Tom"]
[Black "Fabris, Alberto"]
[WhiteFideId "26093820"]
[BlackFideId "801348"]
[WhiteElo "2252"]
[BlackElo "2133"]
[Result "1-0"]
[Round "01"]
[TimeControl "180+1"]
[Date "2022.11.23"]
[WhiteClock "0:00:26"]
[BlackClock "0:00:14"]

1. c4 {[%clk 0:03:00]}  e5 {[%clk 0:02:59]} 2. g3 {[%clk 0:03:00]}  Nf6 {[%clk 0:02:58]} 3. Bg2 {[%clk 0:03:01]}  Nc6 {[%clk 0:02:55]} 4. Nc3 {[%clk 0:03:01]}  Bb4 {[%clk 0:02:53]} 5. Nd5 {[%clk 0:03:00]}  Nxd5 {[%clk 0:02:51]} 6. cxd5 {[%clk 0:03:01]}  Ne7 {[%clk 0:02:50]} 7. e3 {[%clk 0:02:55]}  O-O {[%clk 0:02:49]} 8. Ne2 {[%clk 0:02:56]}  d6 {[%clk 0:02:48]} 9. O-O {[%clk 0:02:56]}  c6 {[%clk 0:02:42]} 10. dxc6 {[%clk 0:02:53]}  bxc6 {[%clk 0:02:41]} 11. a3 {[%clk 0:02:44]}  Ba5 {[%clk 0:02:38]} 12. d4 {[%clk 0:02:44]}  Be6 {[%clk 0:02:33]} 13. b4 {[%clk 0:02:42]}  Bb6 {[%clk 0:02:33]} 14. Bb2 {[%clk 0:02:42]}  exd4 {[%clk 0:02:24]} 15. Nxd4 {[%clk 0:02:43]}  Bd5 {[%clk 0:02:24]} 16. Bxd5 {[%clk 0:02:37]}  cxd5 {[%clk 0:02:22]} 17. Qg4 {[%clk 0:02:36]}  Qc8 {[%clk 0:02:14]} 18. Qf3 {[%clk 0:02:18]}  Bxd4 {[%clk 0:02:12]} 19. Bxd4 {[%clk 0:02:17]}  Qf5 {[%clk 0:02:06]} 20. Qe2 {[%clk 0:02:13]}  Ng6 {[%clk 0:02:03]} 21. f4 {[%clk 0:01:52]}  Rfc8 {[%clk 0:02:02]} 22. Rac1 {[%clk 0:01:51]}  Qe4 {[%clk 0:01:45]} 23. Qa6 {[%clk 0:01:49]}  Rxc1 {[%clk 0:01:43]} 24. Rxc1 {[%clk 0:01:50]}  h6 {[%clk 0:01:40]} 25. Qxd6 {[%clk 0:01:47]}  h5 {[%clk 0:01:31]} 26. Rf1 {[%clk 0:01:34]}  h4 {[%clk 0:01:28]} 27. f5 {[%clk 0:01:33]}  Nf8 {[%clk 0:01:24]} 28. gxh4 {[%clk 0:01:27]}  Rc8 {[%clk 0:01:20]} 29. Qg3 {[%clk 0:01:25]}  g6 {[%clk 0:01:14]} 30. Qf4 {[%clk 0:01:15]}  Qxf4 {[%clk 0:01:08]} 31. Rxf4 {[%clk 0:01:14]}  Rc2 {[%clk 0:01:04]} 32. Rf2 {[%clk 0:01:11]}  Rc1+ {[%clk 0:00:54]} 33. Kg2 {[%clk 0:01:10]}  a6 {[%clk 0:00:55]} 34. fxg6 {[%clk 0:01:09]}  Nxg6 {[%clk 0:00:54]} 35. h5 {[%clk 0:01:09]}  Ne7 {[%clk 0:00:52]} 36. Rf3 {[%clk 0:01:01]}  Nc6 {[%clk 0:00:50]} 37. Rg3+ {[%clk 0:00:58]}  Kh7 {[%clk 0:00:47]} 38. Rg7+ {[%clk 0:00:50]}  Kh6 {[%clk 0:00:47]} 39. Rxf7 {[%clk 0:00:51]}  Nxd4 {[%clk 0:00:36]} 40. exd4 {[%clk 0:00:52]}  Rc2+ {[%clk 0:00:35]} 41. Rf2 {[%clk 0:00:52]}  Rc4 {[%clk 0:00:32]} 42. Rf6+ {[%clk 0:00:49]}  Kxh5 {[%clk 0:00:31]} 43. Rf5+ {[%clk 0:00:50]}  Kg4 {[%clk 0:00:31]} 44. Rxd5 {[%clk 0:00:51]}  Rc2+ {[%clk 0:00:30]} 45. Kg1 {[%clk 0:00:44]}  Rc1+ {[%clk 0:00:27]} 46. Kf2 {[%clk 0:00:43]}  Rc2+ {[%clk 0:00:26]} 47. Ke3 {[%clk 0:00:44]}  Rc3+ {[%clk 0:00:27]} 48. Ke4 {[%clk 0:00:44]}  Rxa3 {[%clk 0:00:27]} 49. Ra5 {[%clk 0:00:44]}  Rb3 {[%clk 0:00:23]} 50. Rxa6 {[%clk 0:00:41]}  Rxb4 {[%clk 0:00:22]} 51. Rg6+ {[%clk 0:00:41]}  Kh5 {[%clk 0:00:21]} 52. Rg8 {[%clk 0:00:40]}  Rb2 {[%clk 0:00:19]} 53. d5 {[%clk 0:00:38]}  Re2+ {[%clk 0:00:19]} 54. Kd4 {[%clk 0:00:38]}  Rd2+ {[%clk 0:00:19]} 55. Kc5 {[%clk 0:00:37]}  Rc2+ {[%clk 0:00:18]} 56. Kb6 {[%clk 0:00:37]}  Rb2+ {[%clk 0:00:18]} 57. Kc7 {[%clk 0:00:37]}  Rc2+ {[%clk 0:00:17]} 58. Kd7 {[%clk 0:00:37]}  Kh6 {[%clk 0:00:17]} 59. d6 {[%clk 0:00:35]}  Kh7 {[%clk 0:00:17]} 60. Rg4 {[%clk 0:00:30]}  Rxh2 {[%clk 0:00:17]} 61. Ke6 {[%clk 0:00:30]}  Re2+ {[%clk 0:00:17]} 62. Kd5 {[%clk 0:00:30]}  Rd2+ {[%clk 0:00:15]} 63. Rd4 {[%clk 0:00:29]}  Rxd4+ {[%clk 0:00:14]} 64. Kxd4 {[%clk 0:00:30]}  Kg6 {[%clk 0:00:14]} 65. Kd5 {[%clk 0:00:28]}  Kf7 {[%clk 0:00:14]} 66. Kc6 {[%clk 0:00:28]}  Ke8 {[%clk 0:00:14]} 67. Kc7 {[%clk 0:00:26]} 1-0


[Site "https://www.chess.com"]

[Event "Titled Tuesday Blitz November 22 Early 2022"]
[White "Drygalov, Sergey"]
[Black "Aarav Dengla"]
[WhiteFideId "24171743"]
[BlackFideId "45059756"]
[WhiteElo "2528"]
[BlackElo "2261"]
[Result "1-0"]
[Round "01"]
[TimeControl "180+1"]
[Date "2022.11.22"]
[WhiteClock "0:01:19"]
[BlackClock "0:01:31"]

1. d4 {[%clk 0:02:58]}  d5 {[%clk 0:02:59]} 2. c4 {[%clk 0:02:58]}  e6 {[%clk 0:02:58]} 3. Nc3 {[%clk 0:02:56]}  a6 {[%clk 0:02:57]} 4. Nf3 {[%clk 0:02:54]}  dxc4 {[%clk 0:02:55]} 5. a4 {[%clk 0:02:51]}  Nc6 {[%clk 0:02:55]} 6. e3 {[%clk 0:02:50]}  Na5 {[%clk 0:02:55]} 7. Ne5 {[%clk 0:02:47]}  c5 {[%clk 0:02:54]} 8. Nxc4 {[%clk 0:02:47]}  cxd4 {[%clk 0:02:52]} 9. exd4 {[%clk 0:02:40]}  Nf6 {[%clk 0:02:50]} 10. Ne5 {[%clk 0:02:39]}  Nd5 {[%clk 0:02:32]} 11. Bd3 {[%clk 0:02:37]}  Bb4 {[%clk 0:02:30]} 12. Bd2 {[%clk 0:02:35]}  O-O {[%clk 0:02:29]} 13. O-O {[%clk 0:02:35]}  Bd6 {[%clk 0:02:27]} 14. Ne4 {[%clk 0:02:30]}  Bxe5 {[%clk 0:02:12]} 15. dxe5 {[%clk 0:02:30]}  Nc6 {[%clk 0:02:12]} 16. f4 {[%clk 0:01:40]}  Ndb4 {[%clk 0:02:07]} 17. Bb1 {[%clk 0:01:36]}  Qd4+ {[%clk 0:02:02]} 18. Kh1 {[%clk 0:01:36]}  Qxb2 {[%clk 0:02:01]} 19. Bc3 {[%clk 0:01:36]}  Qxa1 {[%clk 0:01:39]} 20. Bxa1 {[%clk 0:01:27]}  Rd8 {[%clk 0:01:38]} 21. Qh5 {[%clk 0:01:25]}  Nd3 {[%clk 0:01:33]} 22. Nd6 {[%clk 0:01:23]}  Ncb4 {[%clk 0:01:32]} 23. Qxf7+ {[%clk 0:01:21]}  Kh8 {[%clk 0:01:31]} 24. Qe7 {[%clk 0:01:21]}  Bd7 {[%clk 0:01:31]} 25. Nf7+ {[%clk 0:01:19]} 1-0


[Site "https://www.chess.com"]

[Event "Titled Tuesday Blitz November 22 Early 2022"]
[White "Dzierzak, Radoslaw"]
[Black "Savic, Miroslav"]
[WhiteFideId "1161407"]
[BlackFideId "14508494"]
[WhiteElo "2111"]
[BlackElo "2209"]
[Result "1-0"]
[Round "01"]
[TimeControl "180+1"]
[Date "2022.11.23"]
[WhiteClock "0:00:47"]
[BlackClock "0:01:05"]

1. e4 {[%clk 0:03:00]}  c5 {[%clk 0:02:59]} 2. Nf3 {[%clk 0:03:01]}  d6 {[%clk 0:02:58]} 3. d4 {[%clk 0:03:01]}  cxd4 {[%clk 0:02:58]} 4. Nxd4 {[%clk 0:03:02]}  Nf6 {[%clk 0:02:58]} 5. Nc3 {[%clk 0:02:59]}  a6 {[%clk 0:02:59]} 6. g3 {[%clk 0:03:00]}  e5 {[%clk 0:02:58]} 7. Nde2 {[%clk 0:02:59]}  Be7 {[%clk 0:02:53]} 8. Bg2 {[%clk 0:02:59]}  O-O {[%clk 0:02:54]} 9. O-O {[%clk 0:03:00]}  b5 {[%clk 0:02:53]} 10. Nd5 {[%clk 0:02:59]}  Bb7 {[%clk 0:02:35]} 11. Nec3 {[%clk 0:02:55]}  Nbd7 {[%clk 0:02:32]} 12. Be3 {[%clk 0:02:52]}  Rc8 {[%clk 0:02:30]} 13. a4 {[%clk 0:02:35]}  Nxd5 {[%clk 0:02:26]} 14. Nxd5 {[%clk 0:02:36]}  Bxd5 {[%clk 0:02:18]} 15. Qxd5 {[%clk 0:02:36]}  Nf6 {[%clk 0:02:15]} 16. Qd3 {[%clk 0:02:31]}  Qc7 {[%clk 0:02:14]} 17. c3 {[%clk 0:02:26]}  Rb8 {[%clk 0:02:12]} 18. axb5 {[%clk 0:02:24]}  axb5 {[%clk 0:02:10]} 19. Ra7 {[%clk 0:02:24]}  Qd8 {[%clk 0:02:08]} 20. Rfa1 {[%clk 0:02:24]}  Re8 {[%clk 0:02:04]} 21. b4 {[%clk 0:01:42]}  Bf8 {[%clk 0:02:02]} 22. R1a5 {[%clk 0:01:31]}  d5 {[%clk 0:01:56]} 23. exd5 {[%clk 0:01:22]}  e4 {[%clk 0:01:55]} 24. Qd4 {[%clk 0:01:10]}  Nxd5 {[%clk 0:01:44]} 25. Bh3 {[%clk 0:01:10]}  g6 {[%clk 0:01:36]} 26. Rd7 {[%clk 0:01:07]}  Qc8 {[%clk 0:01:32]} 27. Qxd5 {[%clk 0:01:05]}  Qc4 {[%clk 0:01:21]} 28. Qxc4 {[%clk 0:01:01]}  bxc4 {[%clk 0:01:21]} 29. Raa7 {[%clk 0:01:01]}  Bg7 {[%clk 0:01:19]} 30. Rxf7 {[%clk 0:01:00]}  Bxc3 {[%clk 0:01:18]} 31. Rab7 {[%clk 0:00:51]}  Bxb4 {[%clk 0:01:16]} 32. Rg7+ {[%clk 0:00:48]}  Kf8 {[%clk 0:01:05]} 33. Rbf7# {[%clk 0:00:47]} 1-0


[Site "https://www.chess.com"]